Workbook

Sheet Stadsdelar
B1: VILLOR | E1: FRITIDSHUS | H1: GÅRDAR | K1: LÄGENHETER | N1: TOMTER
A2: Stadsdel | B2: Antal bostäder | C2: Totalt visningar | D2: Snitt per bostad | E2: Antal bostäder | F2: Totalt visningar | G2: Snitt per bostad | H2: Antal bostäder | I2: Totalt visningar | J2: Snitt per bostad | K2: Antal bostäder | L2: Totalt visningar | M2: Snitt per bostad | N2: Antal bostäder | O2: Totalt visningar | P2: Snitt per bostad
A3: Bromma | B3: 41 | C3: 32164 | D3: =IF(B3>0,C3/B3," ") -> 784.4878049 | E3: 4 | F3: 1243 | G3: =IF(E3>0,F3/E3," ") -> 310.75 | H3: 0 | I3: 0 | J3: =IF(H3>0,I3/H3," ") ->  | K3: 197 | L3: 50345 | M3: =IF(K3>0,L3/K3," ") -> 255.5583756 | N3: 2 | O3: 200 | P3: =IF(N3>0,O3/N3," ") -> 100
A4: Enskede/Årsta/Skarpnäck | B4: 43 | C4: 32841 | D4: =IF(B4>0,C4/B4," ") -> 763.744186 | E4: 0 | F4: 0 | G4: =IF(E4>0,F4/E4," ") ->  | H4: 0 | I4: 0 | J4: =IF(H4>0,I4/H4," ") ->  | K4: 289 | L4: 99325 | M4: =IF(K4>0,L4/K4," ") -> 343.6851211 | N4: 5 | O4: 416 | P4: =IF(N4>0,O4/N4," ") -> 83.2
A5: Hägersten/Liljeholmen | B5: 23 | C5: 22618 | D5: 983.3913043 | E5: 0 | F5: 0 | H5: 0 | I5: 0 | K5: 230 | L5: 98074 | M5: 426.4086957 | N5: 1 | O5: 85 | P5: 85
A6: Katarina/Sofia | B6: 0 | C6: 0 | E6: 0 | F6: 0 | H6: 0 | I6: 0 | K6: 262 | L6: 100158 | M6: 382.2824427 | N6: 0 | O6: 0
A7: Kista/Hässelby/Vällingby/Spånga | B7: 95 | C7: 41629 | D7: 438.2 | E7: 0 | F7: 0 | H7: 0 | I7: 0 | K7: 142 | L7: 29728 | M7: 209.3521127 | N7: 3 | O7: 299 | P7: 99.66666667
A8: Kungsholmen | B8: 3 | C8: 3465 | D8: 1155 | E8: 0 | F8: 0 | H8: 0 | I8: 0 | K8: 295 | L8: 120697 | M8: 409.1423729 | N8: 0 | O8: 0
A9: Maria/Gamla Stan/Högalid | B9: 0 | C9: 0 | E9: 0 | F9: 0 | H9: 0 | I9: 0 | K9: 178 | L9: 76048 | M9: 427.2359551 | N9: 0 | O9: 0
A10: Skärholmen/Bredäng | B10: 8 | C10: 3200 | D10: 400 | E10: 0 | F10: 0 | H10: 0 | I10: 0 | K10: 11 | L10: 2438 | M10: 221.6363636 | N10: 0 | O10: 0
A11: Vasastan/Norrmalm | B11: 0 | C11: 0 | E11: 0 | F11: 0 | H11: 0 | I11: 0 | K11: 339 | L11: 156031 | M11: 460.2684366 | N11: 0 | O11: 0
A12: Älvsjö/Farsta/Vantör | B12: 18 | C12: 8983 | D12: 499.0555556 | E12: 1 | F12: 45 | G12: 45 | H12: 0 | I12: 0 | K12: 57 | L12: 15113 | M12: 265.1403509 | N12: 1 | O12: 28 | P12: 28
A13: Östermalm/Djurgården | B13: 1 | C13: 2436 | D13: 2436 | E13: 0 | F13: 0 | H13: 0 | I13: 0 | K13: 318 | L13: 121613 | M13: 382.4308176 | N13: 0 | O13: 0
A15: Hisingen | B15: 96 | C15: 43917 | D15: 457.46875 | E15: 12 | F15: 2578 | G15: 214.8333333 | H15: 1 | I15: 213 | J15: 213 | K15: 179 | L15: 40170 | M15: 224.4134078 | N15: 24 | O15: 1970 | P15: 82.08333333
A16: Göteborg Innerstaden | B16: 8 | C16: 7506 | D16: 938.25 | E16: 1 | F16: 133 | G16: 133 | H16: 0 | I16: 0 | K16: 241 | L16: 129694 | M16: 538.1493776 | N16: 2 | O16: 268 | P16: 134
A17: Göteborg Västra Centrum | B17: 0 | C17: 0 | E17: 1 | F17: 113 | G17: 113 | H17: 0 | I17: 0 | K17: 76 | L17: 38842 | M17: 511.0789474 | N17: 0 | O17: 0
A18: Västra Göteborg | B18: 99 | C18: 78445 | D18: 792.3737374 | E18: 12 | F18: 2525 | G18: 210.4166667 | H18: 0 | I18: 0 | K18: 60 | L18: 18415 | M18: 306.9166667 | N18: 16 | O18: 1538 | P18: 96.125
A19: Göteborg Östra Centrum | B19: 12 | C19: 9936 | D19: 828 | E19: 2 | F19: 365 | G19: 182.5 | H19: 0 | I19: 0 | K19: 87 | L19: 35682 | M19: 410.137931 | N19: 0 | O19: 0
A20: Östra Göteborg | B20: 61 | C20: 17165 | D20: 281.3934426 | E20: 16 | F20: 2181 | G20: 136.3125 | H20: 2 | I20: 539 | J20: 269.5 | K20: 70 | L20: 11432 | M20: 163.3142857 | N20: 11 | O20: 369 | P20: 33.54545455

Sheet Kommuner
C1: VILLOR | F1: FRITIDSHUS | I1: GÅRDAR | L1: LÄGENHETER | O1: TOMTER
A2: Kommun | C2: Antal bostäder | D2: Totalt visningar | E2: Snitt per bostad | F2: Antal bostäder | G2: Totalt visningar | H2: Snitt per bostad | I2: Antal bostäder | J2: Totalt visningar | K2: Snitt per bostad | L2: Antal bostäder | M2: Totalt visningar | N2: Snitt per bostad | O2: Antal bostäder | P2: Totalt visningar | Q2: Snitt per bostad
A3: 114 | B3: Upplands Väsby | C3: 51 | D3: 15486 | E3: =IF(C3>0,D3/C3," ") -> 303.6470588 | F3: 0 | G3: 0 | H3: =IF(F3>0,G3/F3," ") ->  | I3: 0 | J3: 0 | K3: =IF(I3>0,J3/I3," ") ->  | L3: 59 | M3: 12019 | N3: =IF(L3>0,M3/L3," ") -> 203.7118644 | O3: 3 | P3: 110 | Q3: =IF(O3>0,P3/O3," ") -> 36.66666667
A4: 115 | B4: Vallentuna | C4: 57 | D4: 21642 | E4: 379.6842105 | F4: 14 | G4: 4316 | H4: 308.2857143 | I4: 1 | J4: 373 | K4: 373 | L4: 45 | M4: 10878 | N4: 241.7333333 | O4: 23 | P4: 921 | Q4: 40.04347826
A5: 117 | B5: Österåker | C5: 120 | D5: 34769 | E5: 289.7416667 | F5: 61 | G5: 12724 | H5: 208.5901639 | I5: 1 | J5: 242 | K5: 242 | L5: 60 | M5: 6417 | N5: 106.95 | O5: 43 | P5: 2216 | Q5: 51.53488372
A6: 120 | B6: Värmdö | C6: 140 | D6: 31514 | E6: 225.1 | F6: 167 | G6: 41323 | H6: 247.4431138 | I6: 1 | J6: 120 | K6: 120 | L6: 50 | M6: 7344 | N6: 146.88 | O6: 52 | P6: 3190 | Q6: 61.34615385
A7: 123 | B7: Järfälla | C7: 66 | D7: 27195 | E7: 412.0454545 | F7: 0 | G7: 0 | I7: 0 | J7: 0 | L7: 79 | M7: 19651 | N7: 248.7468354 | O7: 19 | P7: 783 | Q7: 41.21052632
A8: 125 | B8: Ekerö | C8: 69 | D8: 22721 | E8: 329.2898551 | F8: 22 | G8: 5205 | H8: 236.5909091 | I8: 5 | J8: 1997 | K8: 399.4 | L8: 9 | M8: 1408 | N8: 156.4444444 | O8: 21 | P8: 1506 | Q8: 71.71428571
A9: 126 | B9: Huddinge | C9: 123 | D9: 57073 | E9: 464.0081301 | F9: 10 | G9: 1802 | H9: 180.2 | I9: 0 | J9: 0 | L9: 90 | M9: 20080 | N9: 223.1111111 | O9: 43 | P9: 2207 | Q9: 51.3255814
A10: 127 | B10: Botkyrka | C10: 87 | D10: 24074 | E10: 276.7126437 | F10: 9 | G10: 1952 | H10: 216.8888889 | I10: 0 | J10: 0 | L10: 86 | M10: 13860 | N10: 161.1627907 | O10: 26 | P10: 775 | Q10: 29.80769231
A11: 128 | B11: Salem | C11: 26 | D11: 7874 | E11: 302.8461538 | F11: 1 | G11: 75 | H11: 75 | I11: 0 | J11: 0 | L11: 18 | M11: 3302 | N11: 183.4444444 | O11: 4 | P11: 180 | Q11: 45
A12: 136 | B12: Haninge | C12: 112 | D12: 31231 | E12: 278.8482143 | F12: 56 | G12: 15590 | H12: 278.3928571 | I12: 4 | J12: 1632 | K12: 408 | L12: 81 | M12: 19014 | N12: 234.7407407 | O12: 45 | P12: 1265 | Q12: 28.11111111
A13: 138 | B13: Tyresö | C13: 70 | D13: 26361 | E13: 376.5857143 | F13: 13 | G13: 2119 | H13: 163 | I13: 1 | J13: 400 | K13: 400 | L13: 44 | M13: 8993 | N13: 204.3863636 | O13: 13 | P13: 765 | Q13: 58.84615385
A14: 139 | B14: Upplands-Bro | C14: 46 | D14: 11819 | E14: 256.9347826 | F14: 12 | G14: 1765 | H14: 147.0833333 | I14: 1 | J14: 273 | K14: 273 | L14: 19 | M14: 4290 | N14: 225.7894737 | O14: 29 | P14: 527 | Q14: 18.17241379
A15: 140 | B15: Nykvarn | C15: 31 | D15: 6522 | E15: 210.3870968 | F15: 5 | G15: 2002 | H15: 400.4 | I15: 2 | J15: 429 | K15: 214.5 | L15: 3 | M15: 543 | N15: 181 | O15: 13 | P15: 236 | Q15: 18.15384615
A16: 160 | B16: Täby | C16: 85 | D16: 50572 | E16: 594.9647059 | F16: 1 | G16: 87 | H16: 87 | I16: 2 | J16: 964 | K16: 482 | L16: 124 | M16: 24202 | N16: 195.1774194 | O16: 6 | P16: 480 | Q16: 80
A17: 162 | B17: Danderyd | C17: 60 | D17: 40397 | E17: 673.2833333 | F17: 1 | G17: 370 | H17: 370 | I17: 0 | J17: 0 | L17: 64 | M17: 14992 | N17: 234.25 | O17: 10 | P17: 1121 | Q17: 112.1
A18: 163 | B18: Sollentuna | C18: 65 | D18: 37489 | E18: 576.7538462 | F18: 0 | G18: 0 | I18: 0 | J18: 0 | L18: 81 | M18: 19777 | N18: 244.1604938 | O18: 14 | P18: 997 | Q18: 71.21428571
A19: 180 | B19: Stockholm | C19: 228 | D19: 144902 | E19: 635.5350877 | F19: 2 | G19: 724 | H19: 362 | I19: 2 | J19: 687 | K19: 343.5 | L19: 2306 | M19: 865407 | N19: 375.2849089 | O19: 10 | P19: 883 | Q19: 88.3
A20: 181 | B20: Södertälje | C20: 118 | D20: 22245 | E20: 188.5169492 | F20: 58 | G20: 10487 | H20: 180.8103448 | I20: 10 | J20: 5309 | K20: 530.9 | L20: 104 | M20: 15841 | N20: 152.3173077 | O20: 40 | P20: 977 | Q20: 24.425
A21: 182 | B21: Nacka | C21: 126 | D21: 75654 | E21: 600.4285714 | F21: 16 | G21: 2946 | H21: 184.125 | I21: 0 | J21: 0 | L21: 167 | M21: 49726 | N21: 297.760479 | O21: 27 | P21: 3295 | Q21: 122.037037
A22: 183 | B22: Sundbyberg | C22: 9 | D22: 5689 | E22: 632.1111111 | F22: 0 | G22: 0 | I22: 0 | J22: 0 | L22: 98 | M22: 24829 | N22: 253.3571429 | O22: 0 | P22: 0
A23: 184 | B23: Solna | C23: 4 | D23: 1348 | E23: 337 | F23: 0 | G23: 0 | I23: 0 | J23: 0 | L23: 248 | M23: 65467 | N23: 263.9798387 | O23: 0 | P23: 0
A24: 186 | B24: Lidingö | C24: 55 | D24: 56543 | E24: 1028.054545 | F24: 2 | G24: 478 | H24: 239 | I24: 0 | J24: 0 | L24: 100 | M24: 19910 | N24: 199.1 | O24: 6 | P24: 670 | Q24: 111.6666667
A25: 187 | B25: Vaxholm | C25: 24 | D25: 10435 | E25: 434.7916667 | F25: 12 | G25: 3690 | H25: 307.5 | I25: 0 | J25: 0 | L25: 22 | M25: 3962 | N25: 180.0909091 | O25: 2 | P25: 87 | Q25: 43.5
A26: 188 | B26: Norrtälje | C26: 164 | D26: 32232 | E26: 196.5365854 | F26: 277 | G26: 77608 | H26: 280.1732852 | I26: 23 | J26: 7278 | K26: 316.4347826 | L26: 65 | M26: 12162 | N26: 187.1076923 | O26: 181 | P26: 3586 | Q26: 19.8121547
A27: 191 | B27: Sigtuna | C27: 69 | D27: 16611 | E27: 240.7391304 | F27: 4 | G27: 768 | H27: 192 | I27: 8 | J27: 3069 | K27: 383.625 | L27: 27 | M27: 6186 | N27: 229.1111111 | O27: 13 | P27: 428 | Q27: 32.92307692
A28: 192 | B28: Nynäshamn | C28: 76 | D28: 10295 | E28: 135.4605263 | F28: 48 | G28: 10311 | H28: 214.8125 | I28: 2 | J28: 328 | K28: 164 | L28: 36 | M28: 4589 | N28: 127.4722222 | O28: 12 | P28: 381 | Q28: 31.75
A29: 305 | B29: Håbo | C29: 38 | D29: 7577 | E29: 199.3947368 | F29: 13 | G29: 1563 | H29: 120.2307692 | I29: 0 | J29: 0 | L29: 9 | M29: 1401 | N29: 155.6666667 | O29: 26 | P29: 582 | Q29: 22.38461538
A30: 319 | B30: Älvkarleby | C30: 41 | D30: 3244 | E30: 79.12195122 | F30: 9 | G30: 895 | H30: 99.44444444 | I30: 0 | J30: 0 | L30: 4 | M30: 204 | N30: 51 | O30: 18 | P30: 218 | Q30: 12.11111111
A31: 330 | B31: Knivsta | C31: 40 | D31: 10883 | E31: 272.075 | F31: 12 | G31: 1655 | H31: 137.9166667 | I31: 2 | J31: 745 | K31: 372.5 | L31: 8 | M31: 1224 | N31: 153 | O31: 19 | P31: 282 | Q31: 14.84210526
A32: 331 | B32: Heby | C32: 63 | D32: 5343 | E32: 84.80952381 | F32: 34 | G32: 4937 | H32: 145.2058824 | I32: 21 | J32: 1880 | K32: 89.52380952 | L32: 3 | M32: 255 | N32: 85 | O32: 21 | P32: 216 | Q32: 10.28571429
A33: 360 | B33: Tierp | C33: 68 | D33: 8741 | E33: 128.5441176 | F33: 42 | G33: 5759 | H33: 137.1190476 | I33: 11 | J33: 1552 | K33: 141.0909091 | L33: 13 | M33: 1089 | N33: 83.76923077 | O33: 33 | P33: 463 | Q33: 14.03030303
A34: 380 | B34: Uppsala | C34: 166 | D34: 61494 | E34: 370.4457831 | F34: 62 | G34: 12535 | H34: 202.1774194 | I34: 12 | J34: 3633 | K34: 302.75 | L34: 381 | M34: 103928 | N34: 272.7769029 | O34: 93 | P34: 2572 | Q34: 27.65591398
A35: 381 | B35: Enköping | C35: 91 | D35: 19668 | E35: 216.1318681 | F35: 31 | G35: 5975 | H35: 192.7419355 | I35: 11 | J35: 4877 | K35: 443.3636364 | L35: 39 | M35: 7726 | N35: 198.1025641 | O35: 45 | P35: 606 | Q35: 13.46666667
A36: 382 | B36: Östhammar | C36: 67 | D36: 8347 | E36: 124.5820896 | F36: 71 | G36: 10894 | H36: 153.4366197 | I36: 16 | J36: 1965 | K36: 122.8125 | L36: 12 | M36: 1489 | N36: 124.0833333 | O36: 25 | P36: 613 | Q36: 24.52
A37: 428 | B37: Vingåker | C37: 46 | D37: 3945 | E37: 85.76086957 | F37: 26 | G37: 4476 | H37: 172.1538462 | I37: 3 | J37: 524 | K37: 174.6666667 | L37: 0 | M37: 0 | O37: 8 | P37: 146 | Q37: 18.25
A38: 461 | B38: Gnesta | C38: 33 | D38: 4085 | E38: 123.7878788 | F38: 25 | G38: 5186 | H38: 207.44 | I38: 5 | J38: 1599 | K38: 319.8 | L38: 8 | M38: 678 | N38: 84.75 | O38: 26 | P38: 367 | Q38: 14.11538462
A39: 480 | B39: Nyköping | C39: 86 | D39: 22367 | E39: 260.0813953 | F39: 35 | G39: 13558 | H39: 387.3714286 | I39: 2 | J39: 2280 | K39: 1140 | L39: 60 | M39: 12378 | N39: 206.3 | O39: 29 | P39: 469 | Q39: 16.17241379
A40: 481 | B40: Oxelösund | C40: 24 | D40: 5801 | E40: 241.7083333 | F40: 6 | G40: 3553 | H40: 592.1666667 | I40: 0 | J40: 0 | L40: 3 | M40: 921 | N40: 307 | O40: 4 | P40: 129 | Q40: 32.25
A41: 482 | B41: Flen | C41: 58 | D41: 8612 | E41: 148.4827586 | F41: 40 | G41: 11922 | H41: 298.05 | I41: 6 | J41: 1963 | K41: 327.1666667 | L41: 6 | M41: 323 | N41: 53.83333333 | O41: 11 | P41: 306 | Q41: 27.81818182
A42: 483 | B42: Katrineholm | C42: 66 | D42: 8186 | E42: 124.030303 | F42: 29 | G42: 7591 | H42: 261.7586207 | I42: 7 | J42: 1235 | K42: 176.4285714 | L42: 14 | M42: 3266 | N42: 233.2857143 | O42: 5 | P42: 149 | Q42: 29.8
A43: 484 | B43: Eskilstuna | C43: 112 | D43: 37681 | E43: 336.4375 | F43: 50 | G43: 10681 | H43: 213.62 | I43: 2 | J43: 577 | K43: 288.5 | L43: 86 | M43: 25723 | N43: 299.1046512 | O43: 41 | P43: 787 | Q43: 19.19512195
A44: 486 | B44: Strängnäs | C44: 111 | D44: 19906 | E44: 179.3333333 | F44: 62 | G44: 12333 | H44: 198.9193548 | I44: 6 | J44: 13387 | K44: 2231.166667 | L44: 47 | M44: 4075 | N44: 86.70212766 | O44: 111 | P44: 1163 | Q44: 10.47747748
A45: 488 | B45: Trosa | C45: 39 | D45: 10118 | E45: 259.4358974 | F45: 21 | G45: 5022 | H45: 239.1428571 | I45: 2 | J45: 301 | K45: 150.5 | L45: 9 | M45: 1391 | N45: 154.5555556 | O45: 17 | P45: 864 | Q45: 50.82352941
A46: 509 | B46: Ödeshög | C46: 24 | D46: 2336 | E46: 97.33333333 | F46: 5 | G46: 308 | H46: 61.6 | I46: 4 | J46: 582 | K46: 145.5 | L46: 1 | M46: 23 | N46: 23 | O46: 5 | P46: 64 | Q46: 12.8
A47: 512 | B47: Ydre | C47: 20 | D47: 1597 | E47: 79.85 | F47: 4 | G47: 713 | H47: 178.25 | I47: 1 | J47: 116 | K47: 116 | L47: 0 | M47: 0 | O47: 2 | P47: 50 | Q47: 25
A48: 513 | B48: Kinda | C48: 15 | D48: 4948 | E48: 329.8666667 | F48: 7 | G48: 1357 | H48: 193.8571429 | I48: 3 | J48: 1057 | K48: 352.3333333 | L48: 0 | M48: 0 | O48: 4 | P48: 109 | Q48: 27.25
A49: 560 | B49: Boxholm | C49: 13 | D49: 1359 | E49: 104.5384615 | F49: 13 | G49: 1844 | H49: 141.8461538 | I49: 2 | J49: 630 | K49: 315 | L49: 0 | M49: 0 | O49: 37 | P49: 168 | Q49: 4.540540541
A50: 561 | B50: Åtvidaberg | C50: 31 | D50: 5388 | E50: 173.8064516 | F50: 8 | G50: 1855 | H50: 231.875 | I50: 5 | J50: 1063 | K50: 212.6 | L50: 3 | M50: 344 | N50: 114.6666667 | O50: 2 | P50: 45 | Q50: 22.5
A51: 562 | B51: Finspång | C51: 55 | D51: 9123 | E51: 165.8727273 | F51: 10 | G51: 1476 | H51: 147.6 | I51: 3 | J51: 883 | K51: 294.3333333 | L51: 11 | M51: 2381 | N51: 216.4545455 | O51: 5 | P51: 57 | Q51: 11.4
A52: 563 | B52: Valdemarsvik | C52: 41 | D52: 4317 | E52: 105.2926829 | F52: 31 | G52: 5377 | H52: 173.4516129 | I52: 4 | J52: 508 | K52: 127 | L52: 0 | M52: 0 | O52: 27 | P52: 281 | Q52: 10.40740741
A53: 580 | B53: Linköping | C53: 111 | D53: 68395 | E53: 616.1711712 | F53: 23 | G53: 4836 | H53: 210.2608696 | I53: 2 | J53: 761 | K53: 380.5 | L53: 104 | M53: 43819 | N53: 421.3365385 | O53: 23 | P53: 1058 | Q53: 46
A54: 581 | B54: Norrköping | C54: 156 | D54: 47059 | E54: 301.6602564 | F54: 50 | G54: 10990 | H54: 219.8 | I54: 4 | J54: 804 | K54: 201 | L54: 115 | M54: 37889 | N54: 329.4695652 | O54: 58 | P54: 1264 | Q54: 21.79310345
A55: 582 | B55: Söderköping | C55: 44 | D55: 8240 | E55: 187.2727273 | F55: 20 | G55: 4004 | H55: 200.2 | I55: 9 | J55: 2409 | K55: 267.6666667 | L55: 2 | M55: 421 | N55: 210.5 | O55: 13 | P55: 321 | Q55: 24.69230769
A56: 583 | B56: Motala | C56: 115 | D56: 19047 | E56: 165.626087 | F56: 19 | G56: 3241 | H56: 170.5789474 | I56: 8 | J56: 2027 | K56: 253.375 | L56: 19 | M56: 4464 | N56: 234.9473684 | O56: 11 | P56: 173 | Q56: 15.72727273
A57: 584 | B57: Vadstena | C57: 16 | D57: 3182 | E57: 198.875 | F57: 4 | G57: 463 | H57: 115.75 | I57: 1 | J57: 185 | K57: 185 | L57: 3 | M57: 335 | N57: 111.6666667 | O57: 3 | P57: 86 | Q57: 28.66666667
A58: 586 | B58: Mjölby | C58: 42 | D58: 10448 | E58: 248.7619048 | F58: 11 | G58: 3372 | H58: 306.5454545 | I58: 2 | J58: 229 | K58: 114.5 | L58: 10 | M58: 2185 | N58: 218.5 | O58: 5 | P58: 193 | Q58: 38.6
A59: 604 | B59: Aneby | C59: 38 | D59: 3419 | E59: 89.97368421 | F59: 1 | G59: 37 | H59: 37 | I59: 0 | J59: 0 | L59: 1 | M59: 257 | N59: 257 | O59: 2 | P59: 41 | Q59: 20.5
A60: 617 | B60: Gnosjö | C60: 38 | D60: 2037 | E60: 53.60526316 | F60: 9 | G60: 309 | H60: 34.33333333 | I60: 2 | J60: 163 | K60: 81.5 | L60: 1 | M60: 39 | N60: 39 | O60: 1 | P60: 3 | Q60: 3
A61: 642 | B61: Mullsjö | C61: 11 | D61: 2741 | E61: 249.1818182 | F61: 3 | G61: 260 | H61: 86.66666667 | I61: 2 | J61: 248 | K61: 124 | L61: 1 | M61: 324 | N61: 324 | O61: 1 | P61: 12 | Q61: 12
A62: 643 | B62: Habo | C62: 13 | D62: 3533 | E62: 271.7692308 | F62: 6 | G62: 963 | H62: 160.5 | I62: 3 | J62: 2189 | K62: 729.6666667 | L62: 0 | M62: 0 | O62: 9 | P62: 397 | Q62: 44.11111111
A63: 662 | B63: Gislaved | C63: 84 | D63: 6955 | E63: 82.79761905 | F63: 16 | G63: 1500 | H63: 93.75 | I63: 8 | J63: 940 | K63: 117.5 | L63: 6 | M63: 706 | N63: 117.6666667 | O63: 16 | P63: 179 | Q63: 11.1875
A64: 665 | B64: Vaggeryd | C64: 28 | D64: 3512 | E64: 125.4285714 | F64: 8 | G64: 647 | H64: 80.875 | I64: 3 | J64: 1000 | K64: 333.3333333 | L64: 1 | M64: 248 | N64: 248 | O64: 4 | P64: 394 | Q64: 98.5
A65: 680 | B65: Jönköping | C65: 138 | D65: 54648 | E65: 396 | F65: 42 | G65: 10977 | H65: 261.3571429 | I65: 7 | J65: 2686 | K65: 383.7142857 | L65: 157 | M65: 43102 | N65: 274.5350318 | O65: 14 | P65: 484 | Q65: 34.57142857
A66: 682 | B66: Nässjö | C66: 96 | D66: 12621 | E66: 131.46875 | F66: 24 | G66: 4153 | H66: 173.0416667 | I66: 10 | J66: 2829 | K66: 282.9 | L66: 21 | M66: 2819 | N66: 134.2380952 | O66: 7 | P66: 140 | Q66: 20
A67: 683 | B67: Värnamo | C67: 116 | D67: 10784 | E67: =IF(C67>0,D67/C67," ") -> 92.96551724 | F67: 22 | G67: 1139 | H67: =IF(F67>0,G67/F67," ") -> 51.77272727 | I67: 12 | J67: 1674 | K67: =IF(I67>0,J67/I67," ") -> 139.5 | L67: 39 | M67: 4329 | N67: =IF(L67>0,M67/L67," ") -> 111 | O67: 12 | P67: 116 | Q67: =IF(O67>0,P67/O67," ") -> 9.666666667
A68: 684 | B68: Sävsjö | C68: 47 | D68: 3598 | E68: 76.55319149 | F68: 8 | G68: 407 | H68: 50.875 | I68: 5 | J68: 620 | K68: 124 | L68: 0 | M68: 0 | O68: 5 | P68: 30 | Q68: 6
A69: 685 | B69: Vetlanda | C69: 133 | D69: 9039 | E69: 67.96240602 | F69: 28 | G69: 2414 | H69: 86.21428571 | I69: 10 | J69: 2118 | K69: 211.8 | L69: 17 | M69: 1489 | N69: 87.58823529 | O69: 12 | P69: 180 | Q69: 15
A70: 686 | B70: Eksjö | C70: 52 | D70: 4306 | E70: 82.80769231 | F70: 16 | G70: 2565 | H70: 160.3125 | I70: 2 | J70: 424 | K70: 212 | L70: 2 | M70: 354 | N70: 177 | O70: 1 | P70: 24 | Q70: 24
A71: 687 | B71: Tranås | C71: 36 | D71: 5384 | E71: 149.5555556 | F71: 11 | G71: 1304 | H71: 118.5454545 | I71: 0 | J71: 0 | L71: 8 | M71: 1277 | N71: 159.625 | O71: 2 | P71: 28 | Q71: 14
A72: 760 | B72: Uppvidinge | C72: 46 | D72: 3425 | E72: 74.45652174 | F72: 16 | G72: 2514 | H72: 157.125 | I72: 5 | J72: 1555 | K72: 311 | L72: 0 | M72: 0 | O72: 0 | P72: 0
A73: 761 | B73: Lessebo | C73: 26 | D73: 1878 | E73: 72.23076923 | F73: 4 | G73: 393 | H73: 98.25 | I73: 0 | J73: 0 | L73: 1 | M73: 99 | N73: 99 | O73: 0 | P73: 0
A74: 763 | B74: Tingsryd | C74: 84 | D74: 4045 | E74: 48.1547619 | F74: 36 | G74: 2828 | H74: 78.55555556 | I74: 16 | J74: 1820 | K74: 113.75 | L74: 1 | M74: 99 | N74: 99 | O74: 7 | P74: 162 | Q74: 23.14285714
A75: 764 | B75: Alvesta | C75: 42 | D75: 4988 | E75: 118.7619048 | F75: 27 | G75: 2969 | H75: 109.962963 | I75: 15 | J75: 3118 | K75: 207.8666667 | L75: 1 | M75: 85 | N75: 85 | O75: 2 | P75: 37 | Q75: 18.5
A76: 765 | B76: Älmhult | C76: 85 | D76: 5074 | E76: 59.69411765 | F76: 33 | G76: 2170 | H76: 65.75757576 | I76: 13 | J76: 1099 | K76: 84.53846154 | L76: 4 | M76: 172 | N76: 43 | O76: 6 | P76: 57 | Q76: 9.5
A77: 767 | B77: Markaryd | C77: 77 | D77: 3592 | E77: 46.64935065 | F77: 15 | G77: 942 | H77: 62.8 | I77: 1 | J77: 91 | K77: 91 | L77: 3 | M77: 39 | N77: 13 | O77: 3 | P77: 36 | Q77: 12
A78: 780 | B78: Växjö | C78: 85 | D78: 24616 | E78: 289.6 | F78: 19 | G78: 2099 | H78: 110.4736842 | I78: 10 | J78: 3187 | K78: 318.7 | L78: 52 | M78: 17651 | N78: 339.4423077 | O78: 14 | P78: 362 | Q78: 25.85714286
A79: 781 | B79: Ljungby | C79: 100 | D79: 6349 | E79: 63.49 | F79: 56 | G79: 5241 | H79: 93.58928571 | I79: 25 | J79: 3216 | K79: 128.64 | L79: 10 | M79: 1170 | N79: 117 | O79: 13 | P79: 163 | Q79: 12.53846154
A80: 821 | B80: Högsby | C80: 53 | D80: 1734 | E80: 32.71698113 | F80: 18 | G80: 918 | H80: 51 | I80: 3 | J80: 137 | K80: 45.66666667 | L80: 0 | M80: 0 | O80: 0 | P80: 0
A81: 834 | B81: Torsås | C81: 44 | D81: 2949 | E81: 67.02272727 | F81: 29 | G81: 2738 | H81: 94.4137931 | I81: 3 | J81: 333 | K81: 111 | L81: 0 | M81: 0 | O81: 1 | P81: 11 | Q81: 11
A82: 840 | B82: Mörbylånga | C82: 55 | D82: 6121 | E82: 111.2909091 | F82: 52 | G82: 6749 | H82: 129.7884615 | I82: 3 | J82: 501 | K82: 167 | L82: 10 | M82: 1061 | N82: 106.1 | O82: 46 | P82: 342 | Q82: 7.434782609
A83: 860 | B83: Hultsfred | C83: 116 | D83: 5927 | E83: 51.09482759 | F83: 21 | G83: 1720 | H83: 81.9047619 | I83: 5 | J83: 316 | K83: 63.2 | L83: 0 | M83: 0 | O83: 3 | P83: 84 | Q83: 28
A84: 861 | B84: Mönsterås | C84: 53 | D84: 5648 | E84: 106.5660377 | F84: 19 | G84: 1939 | H84: 102.0526316 | I84: 1 | J84: 147 | K84: 147 | L84: 1 | M84: 479 | N84: 479 | O84: 17 | P84: 176 | Q84: 10.35294118
A85: 862 | B85: Emmaboda | C85: 41 | D85: 3840 | E85: 93.65853659 | F85: 9 | G85: 582 | H85: 64.66666667 | I85: 8 | J85: 1957 | K85: 244.625 | L85: 0 | M85: 0 | O85: 0 | P85: 0
A86: 880 | B86: Kalmar | C86: 118 | D86: 38149 | E86: 323.2966102 | F86: 23 | G86: 2368 | H86: 102.9565217 | I86: 8 | J86: 1634 | K86: 204.25 | L86: 62 | M86: 14923 | N86: 240.6935484 | O86: 23 | P86: 322 | Q86: 14
A87: 881 | B87: Nybro | C87: 75 | D87: 8127 | E87: 108.36 | F87: 10 | G87: 1328 | H87: 132.8 | I87: 8 | J87: 1481 | K87: 185.125 | L87: 1 | M87: 153 | N87: 153 | O87: 7 | P87: 42 | Q87: 6
A88: 882 | B88: Oskarshamn | C88: 106 | D88: 14266 | E88: 134.5849057 | F88: 29 | G88: 3871 | H88: 133.4827586 | I88: 3 | J88: 805 | K88: 268.3333333 | L88: 12 | M88: 2146 | N88: 178.8333333 | O88: 8 | P88: 143 | Q88: 17.875
A89: 883 | B89: Västervik | C89: 122 | D89: 15047 | E89: 123.3360656 | F89: 59 | G89: 7564 | H89: 128.2033898 | I89: 10 | J89: 5953 | K89: 595.3 | L89: 26 | M89: 4099 | N89: 157.6538462 | O89: 33 | P89: 381 | Q89: 11.54545455
A90: 884 | B90: Vimmerby | C90: 41 | D90: 3600 | E90: 87.80487805 | F90: 12 | G90: 2792 | H90: 232.6666667 | I90: 3 | J90: 1340 | K90: 446.6666667 | L90: 5 | M90: 354 | N90: 70.8 | O90: 3 | P90: 25 | Q90: 8.333333333
A91: 885 | B91: Borgholm | C91: 72 | D91: 5828 | E91: 80.94444444 | F91: 135 | G91: 13978 | H91: 103.5407407 | I91: 6 | J91: 866 | K91: 144.3333333 | L91: 52 | M91: 1341 | N91: 25.78846154 | O91: 69 | P91: 1097 | Q91: 15.89855072
A92: 980 | B92: Gotland | C92: 147 | D92: 32056 | E92: 218.0680272 | F92: 109 | G92: 19836 | H92: 181.9816514 | I92: 41 | J92: 6961 | K92: 169.7804878 | L92: 100 | M92: 19456 | N92: 194.56 | O92: 189 | P92: 2754 | Q92: 14.57142857
A93: 1060 | B93: Olofström | C93: 111 | D93: 7131 | E93: 64.24324324 | F93: 21 | G93: 2082 | H93: 99.14285714 | I93: 11 | J93: 886 | K93: 80.54545455 | L93: 0 | M93: 0 | O93: 3 | P93: 31 | Q93: 10.33333333
A94: 1080 | B94: Karlskrona | C94: 151 | D94: 26640 | E94: 176.4238411 | F94: 78 | G94: 11637 | H94: 149.1923077 | I94: 14 | J94: 1446 | K94: 103.2857143 | L94: 63 | M94: 15010 | N94: 238.2539683 | O94: 30 | P94: 787 | Q94: 26.23333333
A95: 1081 | B95: Ronneby | C95: 197 | D95: 12590 | E95: 63.90862944 | F95: 50 | G95: 5392 | H95: 107.84 | I95: 10 | J95: 1191 | K95: 119.1 | L95: 18 | M95: 2489 | N95: 138.2777778 | O95: 15 | P95: 1096 | Q95: 73.06666667
A96: 1082 | B96: Karlshamn | C96: 107 | D96: 14247 | E96: 133.1495327 | F96: 24 | G96: 4953 | H96: 206.375 | I96: 4 | J96: 328 | K96: 82 | L96: 22 | M96: 4174 | N96: 189.7272727 | O96: 7 | P96: 64 | Q96: 9.142857143
A97: 1083 | B97: Sölvesborg | C97: 80 | D97: 7069 | E97: 88.3625 | F97: 35 | G97: 4036 | H97: 115.3142857 | I97: 5 | J97: 776 | K97: 155.2 | L97: 8 | M97: 1034 | N97: 129.25 | O97: 13 | P97: 280 | Q97: 21.53846154
A98: 1214 | B98: Svalöv | C98: 61 | D98: 5365 | E98: 87.95081967 | F98: 5 | G98: 1306 | H98: 261.2 | I98: 16 | J98: 2145 | K98: 134.0625 | L98: 6 | M98: 894 | N98: 149 | O98: 18 | P98: 131 | Q98: 7.277777778
A99: 1230 | B99: Staffanstorp | C99: 65 | D99: 11105 | E99: 170.8461538 | F99: 0 | G99: 0 | I99: 4 | J99: 1127 | K99: 281.75 | L99: 20 | M99: 2706 | N99: 135.3 | O99: 7 | P99: 194 | Q99: 27.71428571
A100: 1231 | B100: Burlöv | C100: 41 | D100: 9045 | E100: 220.6097561 | F100: 0 | G100: 0 | I100: 0 | J100: 0 | L100: 32 | M100: 3420 | N100: 106.875 | O100: 1 | P100: 25 | Q100: 25
A101: 1233 | B101: Vellinge | C101: 224 | D101: 31663 | E101: 141.3526786 | F101: 21 | G101: 1847 | H101: 87.95238095 | I101: 13 | J101: 2378 | K101: 182.9230769 | L101: 53 | M101: 3326 | N101: 62.75471698 | O101: 43 | P101: 899 | Q101: 20.90697674
A102: 1256 | B102: Östra Göinge | C102: 85 | D102: 6922 | E102: 81.43529412 | F102: 13 | G102: 2316 | H102: 178.1538462 | I102: 5 | J102: 490 | K102: 98 | L102: 0 | M102: 0 | O102: 3 | P102: 61 | Q102: 20.33333333
A103: 1257 | B103: Örkelljunga | C103: 76 | D103: 4466 | E103: 58.76315789 | F103: 45 | G103: 2507 | H103: 55.71111111 | I103: 7 | J103: 1084 | K103: 154.8571429 | L103: 2 | M103: 147 | N103: 73.5 | O103: 21 | P103: 162 | Q103: 7.714285714
A104: 1260 | B104: Bjuv | C104: 68 | D104: 6819 | E104: 100.2794118 | F104: 0 | G104: 0 | I104: 2 | J104: 297 | K104: 148.5 | L104: 13 | M104: 1412 | N104: 108.6153846 | O104: 4 | P104: 38 | Q104: 9.5
A105: 1261 | B105: Kävlinge | C105: 81 | D105: 16628 | E105: 205.2839506 | F105: 7 | G105: 323 | H105: 46.14285714 | I105: 2 | J105: 312 | K105: 156 | L105: 19 | M105: 3641 | N105: 191.6315789 | O105: 9 | P105: 211 | Q105: 23.44444444
A106: 1262 | B106: Lomma | C106: 42 | D106: 20524 | E106: 488.6666667 | F106: 0 | G106: 0 | I106: 0 | J106: 0 | L106: 33 | M106: 6060 | N106: 183.6363636 | O106: 3 | P106: 168 | Q106: 56
A107: 1263 | B107: Svedala | C107: 46 | D107: 12312 | E107: 267.6521739 | F107: 1 | G107: 129 | H107: 129 | I107: 1 | J107: 446 | K107: 446 | L107: 15 | M107: 2318 | N107: 154.5333333 | O107: 6 | P107: 142 | Q107: 23.66666667
A108: 1264 | B108: Skurup | C108: 106 | D108: 11661 | E108: 110.009434 | F108: 10 | G108: 1603 | H108: 160.3 | I108: 20 | J108: 2814 | K108: 140.7 | L108: 5 | M108: 509 | N108: 101.8 | O108: 15 | P108: 301 | Q108: 20.06666667
A109: 1265 | B109: Sjöbo | C109: 117 | D109: 11976 | E109: 102.3589744 | F109: 42 | G109: 4480 | H109: 106.6666667 | I109: 27 | J109: 5589 | K109: 207 | L109: 11 | M109: 1761 | N109: 160.0909091 | O109: 18 | P109: 201 | Q109: 11.16666667
A110: 1266 | B110: Hörby | C110: 55 | D110: 7938 | E110: 144.3272727 | F110: 32 | G110: 2607 | H110: 81.46875 | I110: 16 | J110: 2111 | K110: 131.9375 | L110: 0 | M110: 0 | O110: 10 | P110: 77 | Q110: 7.7
A111: 1267 | B111: Höör | C111: 77 | D111: 13432 | E111: 174.4415584 | F111: 46 | G111: 5583 | H111: 121.3695652 | I111: 10 | J111: 1821 | K111: 182.1 | L111: 10 | M111: 1497 | N111: 149.7 | O111: 41 | P111: 436 | Q111: 10.63414634
A112: 1270 | B112: Tomelilla | C112: 92 | D112: 8997 | E112: 97.79347826 | F112: 33 | G112: 4910 | H112: 148.7878788 | I112: 20 | J112: 3199 | K112: 159.95 | L112: 4 | M112: 503 | N112: 125.75 | O112: 11 | P112: 161 | Q112: 14.63636364
A113: 1272 | B113: Bromölla | C113: 74 | D113: 5137 | E113: 69.41891892 | F113: 9 | G113: 1387 | H113: 154.1111111 | I113: 1 | J113: 260 | K113: 260 | L113: 1 | M113: 93 | N113: 93 | O113: 2 | P113: 18 | Q113: 9
A114: 1273 | B114: Osby | C114: 51 | D114: 4264 | E114: 83.60784314 | F114: 25 | G114: 2414 | H114: 96.56 | I114: 6 | J114: 464 | K114: 77.33333333 | L114: 1 | M114: 33 | N114: 33 | O114: 5 | P114: 68 | Q114: 13.6
A115: 1275 | B115: Perstorp | C115: 30 | D115: 1951 | E115: 65.03333333 | F115: 3 | G115: 208 | H115: 69.33333333 | I115: 3 | J115: 306 | K115: 102 | L115: 0 | M115: 0 | O115: 0 | P115: 0
A116: 1276 | B116: Klippan | C116: 76 | D116: 5916 | E116: 77.84210526 | F116: 36 | G116: 2497 | H116: 69.36111111 | I116: 10 | J116: 1153 | K116: 115.3 | L116: 2 | M116: 303 | N116: 151.5 | O116: 9 | P116: 84 | Q116: 9.333333333
A117: 1277 | B117: Åstorp | C117: 73 | D117: 7992 | E117: 109.4794521 | F117: 6 | G117: 644 | H117: 107.3333333 | I117: 2 | J117: 177 | K117: 88.5 | L117: 1 | M117: 219 | N117: 219 | O117: 7 | P117: 52 | Q117: 7.428571429
A118: 1278 | B118: Båstad | C118: 144 | D118: 13096 | E118: 90.94444444 | F118: 69 | G118: 6030 | H118: 87.39130435 | I118: 11 | J118: 884 | K118: 80.36363636 | L118: 29 | M118: 709 | N118: 24.44827586 | O118: 64 | P118: 599 | Q118: 9.359375
A119: 1280 | B119: Malmö | C119: 357 | D119: 87390 | E119: 244.789916 | F119: 65 | G119: 5853 | H119: 90.04615385 | I119: 1 | J119: 521 | K119: 521 | L119: 1433 | M119: 191947 | N119: 133.9476622 | O119: 8 | P119: 575 | Q119: 71.875
A120: 1281 | B120: Lund | C120: 150 | D120: 48422 | E120: 322.8133333 | F120: 3 | G120: 213 | H120: 71 | I120: 10 | J120: 1577 | K120: 157.7 | L120: 344 | M120: 60443 | N120: 175.7063953 | O120: 8 | P120: 716 | Q120: 89.5
A121: 1282 | B121: Landskrona | C121: 115 | D121: 18718 | E121: 162.7652174 | F121: 11 | G121: 809 | H121: 73.54545455 | I121: 6 | J121: 787 | K121: 131.1666667 | L121: 63 | M121: 6448 | N121: 102.3492063 | O121: 31 | P121: 774 | Q121: 24.96774194
A122: 1283 | B122: Helsingborg | C122: 217 | D122: 55789 | E122: 257.0921659 | F122: 10 | G122: 995 | H122: 99.5 | I122: 13 | J122: 3147 | K122: 242.0769231 | L122: 422 | M122: 60104 | N122: 142.4265403 | O122: 12 | P122: 616 | Q122: 51.33333333
A123: 1284 | B123: Höganäs | C123: 142 | D123: 22017 | E123: 155.0492958 | F123: 27 | G123: 2576 | H123: 95.40740741 | I123: 6 | J123: 1128 | K123: 188 | L123: 22 | M123: 1125 | N123: 51.13636364 | O123: 28 | P123: 553 | Q123: 19.75
A124: 1285 | B124: Eslöv | C124: 73 | D124: 11988 | E124: 164.2191781 | F124: 3 | G124: 390 | H124: 130 | I124: 14 | J124: 3853 | K124: 275.2142857 | L124: 26 | M124: 4392 | N124: 168.9230769 | O124: 14 | P124: 302 | Q124: 21.57142857
A125: 1286 | B125: Ystad | C125: 107 | D125: 25092 | E125: 234.5046729 | F125: 18 | G125: 3550 | H125: 197.2222222 | I125: 13 | J125: 2740 | K125: 210.7692308 | L125: 23 | M125: 5992 | N125: 260.5217391 | O125: 29 | P125: 548 | Q125: 18.89655172
A126: 1287 | B126: Trelleborg | C126: 182 | D126: 31208 | E126: 171.4725275 | F126: 20 | G126: 2085 | H126: 104.25 | I126: 19 | J126: 2809 | K126: 147.8421053 | L126: 43 | M126: 4760 | N126: 110.6976744 | O126: 52 | P126: 549 | Q126: 10.55769231
A127: 1290 | B127: Kristianstad | C127: 165 | D127: 31730 | E127: 192.3030303 | F127: 53 | G127: 11630 | H127: 219.4339623 | I127: 29 | J127: 5539 | K127: 191 | L127: 40 | M127: 7592 | N127: 189.8 | O127: 37 | P127: 944 | Q127: 25.51351351
A128: 1291 | B128: Simrishamn | C128: 235 | D128: 18482 | E128: 78.64680851 | F128: 68 | G128: 8761 | H128: 128.8382353 | I128: 16 | J128: 1400 | K128: 87.5 | L128: 22 | M128: 1286 | N128: 58.45454545 | O128: 72 | P128: 891 | Q128: 12.375
A129: 1292 | B129: Ängelholm | C129: 128 | D129: 18984 | E129: 148.3125 | F129: 28 | G129: 2613 | H129: 93.32142857 | I129: 19 | J129: 4640 | K129: 244.2105263 | L129: 43 | M129: 5188 | N129: 120.6511628 | O129: 19 | P129: 568 | Q129: 29.89473684
A130: 1293 | B130: Hässleholm | C130: 160 | D130: 21147 | E130: 132.16875 | F130: 63 | G130: 5019 | H130: 79.66666667 | I130: 28 | J130: 6278 | K130: 224.2142857 | L130: 16 | M130: 3188 | N130: 199.25 | O130: 40 | P130: 347 | Q130: 8.675
A131: 1315 | B131: Hylte | C131: 42 | D131: 2968 | E131: =IF(C131>0,D131/C131," ") -> 70.66666667 | F131: 11 | G131: 1666 | H131: =IF(F131>0,G131/F131," ") -> 151.4545455 | I131: 10 | J131: 982 | K131: =IF(I131>0,J131/I131," ") -> 98.2 | L131: 3 | M131: 56 | N131: =IF(L131>0,M131/L131," ") -> 18.66666667 | O131: 24 | P131: 91 | Q131: =IF(O131>0,P131/O131," ") -> 3.791666667
A132: 1380 | B132: Halmstad | C132: 182 | D132: 53796 | E132: 295.5824176 | F132: 38 | G132: 7892 | H132: 207.6842105 | I132: 16 | J132: 2170 | K132: 135.625 | L132: 91 | M132: 19774 | N132: 217.2967033 | O132: 34 | P132: 1400 | Q132: 41.17647059
A133: 1381 | B133: Laholm | C133: 105 | D133: 9656 | E133: 91.96190476 | F133: 67 | G133: 11446 | H133: 170.8358209 | I133: 26 | J133: 2686 | K133: 103.3076923 | L133: 9 | M133: 680 | N133: 75.55555556 | O133: 20 | P133: 305 | Q133: 15.25
A134: 1382 | B134: Falkenberg | C134: 122 | D134: 24392 | E134: 199.9344262 | F134: 59 | G134: 10673 | H134: 180.8983051 | I134: 15 | J134: 2575 | K134: 171.6666667 | L134: 25 | M134: 3553 | N134: 142.12 | O134: 39 | P134: 722 | Q134: 18.51282051
A135: 1383 | B135: Varberg | C135: 99 | D135: 26730 | E135: 270 | F135: 46 | G135: 10501 | H135: 228.2826087 | I135: 19 | J135: 5894 | K135: 310.2105263 | L135: 30 | M135: 11111 | N135: 370.3666667 | O135: 57 | P135: 1290 | Q135: 22.63157895
A136: 1384 | B136: Kungsbacka | C136: 174 | D136: 73457 | E136: 422.1666667 | F136: 33 | G136: 6443 | H136: 195.2424242 | I136: 21 | J136: 5375 | K136: 255.952381 | L136: 29 | M136: 8084 | N136: 278.7586207 | O136: 58 | P136: 3780 | Q136: 65.17241379
A137: 1401 | B137: Härryda | C137: 66 | D137: 25797 | E137: 390.8636364 | F137: 16 | G137: 3281 | H137: 205.0625 | I137: 3 | J137: 1521 | K137: 507 | L137: 11 | M137: 3424 | N137: 311.2727273 | O137: 20 | P137: 1049 | Q137: 52.45
A138: 1402 | B138: Partille | C138: 25 | D138: 15656 | E138: 626.24 | F138: 0 | G138: 0 | I138: 0 | J138: 0 | L138: 16 | M138: 4034 | N138: 252.125 | O138: 5 | P138: 295 | Q138: 59
A139: 1407 | B139: Öckerö | C139: 12 | D139: 6396 | E139: 533 | F139: 2 | G139: 1952 | H139: 976 | I139: 0 | J139: 0 | L139: 3 | M139: 445 | N139: 148.3333333 | O139: 11 | P139: 656 | Q139: 59.63636364
A140: 1415 | B140: Stenungsund | C140: 51 | D140: 15755 | E140: 308.9215686 | F140: 22 | G140: 3469 | H140: 157.6818182 | I140: 5 | J140: 981 | K140: 196.2 | L140: 15 | M140: 4569 | N140: 304.6 | O140: 12 | P140: 245 | Q140: 20.41666667
A141: 1419 | B141: Tjörn | C141: 49 | D141: 9343 | E141: 190.6734694 | F141: 45 | G141: 15102 | H141: 335.6 | I141: 2 | J141: 204 | K141: 102 | L141: 2 | M141: 471 | N141: 235.5 | O141: 34 | P141: 1158 | Q141: 34.05882353
A142: 1421 | B142: Orust | C142: 42 | D142: 7109 | E142: 169.2619048 | F142: 53 | G142: 13538 | H142: 255.4339623 | I142: 12 | J142: 3271 | K142: 272.5833333 | L142: 10 | M142: 1190 | N142: 119 | O142: 36 | P142: 1382 | Q142: 38.38888889
A143: 1427 | B143: Sotenäs | C143: 52 | D143: 6085 | E143: 117.0192308 | F143: 44 | G143: 7930 | H143: 180.2272727 | I143: 1 | J143: 155 | K143: 155 | L143: 14 | M143: 1119 | N143: 79.92857143 | O143: 16 | P143: 510 | Q143: 31.875
A144: 1430 | B144: Munkedal | C144: 21 | D144: 3501 | E144: 166.7142857 | F144: 13 | G144: 1523 | H144: 117.1538462 | I144: 6 | J144: 1851 | K144: 308.5 | L144: 0 | M144: 0 | O144: 9 | P144: 149 | Q144: 16.55555556
A145: 1435 | B145: Tanum | C145: 65 | D145: 5459 | E145: 83.98461538 | F145: 82 | G145: 10800 | H145: 131.7073171 | I145: 9 | J145: 1036 | K145: 115.1111111 | L145: 15 | M145: 349 | N145: 23.26666667 | O145: 56 | P145: 1298 | Q145: 23.17857143
A146: 1438 | B146: Dals-Ed | C146: 18 | D146: 1846 | E146: 102.5555556 | F146: 9 | G146: 1510 | H146: 167.7777778 | I146: 6 | J146: 1862 | K146: 310.3333333 | L146: 2 | M146: 260 | N146: 130 | O146: 2 | P146: 139 | Q146: 69.5
A147: 1439 | B147: Färgelanda | C147: 33 | D147: 3664 | E147: 111.030303 | F147: 7 | G147: 682 | H147: 97.42857143 | I147: 11 | J147: 2036 | K147: 185.0909091 | L147: 0 | M147: 0 | O147: 1 | P147: 5 | Q147: 5
A148: 1440 | B148: Ale | C148: 45 | D148: 15741 | E148: 349.8 | F148: 2 | G148: 576 | H148: 288 | I148: 6 | J148: 1763 | K148: 293.8333333 | L148: 17 | M148: 2557 | N148: 150.4117647 | O148: 23 | P148: 436 | Q148: 18.95652174
A149: 1441 | B149: Lerum | C149: 88 | D149: 27872 | E149: 316.7272727 | F149: 7 | G149: 1139 | H149: 162.7142857 | I149: 4 | J149: 2467 | K149: 616.75 | L149: 21 | M149: 3892 | N149: 185.3333333 | O149: 27 | P149: 606 | Q149: 22.44444444
A150: 1442 | B150: Vårgårda | C150: 32 | D150: 4385 | E150: 137.03125 | F150: 3 | G150: 517 | H150: 172.3333333 | I150: 3 | J150: 835 | K150: 278.3333333 | L150: 4 | M150: 242 | N150: 60.5 | O150: 12 | P150: 86 | Q150: 7.166666667
A151: 1443 | B151: Bollebygd | C151: 22 | D151: 6215 | E151: 282.5 | F151: 5 | G151: 1458 | H151: 291.6 | I151: 0 | J151: 0 | L151: 2 | M151: 525 | N151: 262.5 | O151: 7 | P151: 165 | Q151: 23.57142857
A152: 1444 | B152: Grästorp | C152: 17 | D152: 2876 | E152: 169.1764706 | F152: 2 | G152: 349 | H152: 174.5 | I152: 7 | J152: 531 | K152: 75.85714286 | L152: 0 | M152: 0 | O152: 1 | P152: 528 | Q152: 528
A153: 1445 | B153: Essunga | C153: 16 | D153: 3944 | E153: 246.5 | F153: 1 | G153: 134 | H153: 134 | I153: 2 | J153: 745 | K153: 372.5 | L153: 0 | M153: 0 | O153: 1 | P153: 36 | Q153: 36
A154: 1446 | B154: Karlsborg | C154: 39 | D154: 2269 | E154: 58.17948718 | F154: 17 | G154: 2506 | H154: 147.4117647 | I154: 3 | J154: 210 | K154: 70 | L154: 0 | M154: 0 | O154: 2 | P154: 53 | Q154: 26.5
A155: 1447 | B155: Gullspång | C155: 29 | D155: 1458 | E155: 50.27586207 | F155: 18 | G155: 1513 | H155: 84.05555556 | I155: 2 | J155: 250 | K155: 125 | L155: 1 | M155: 33 | N155: 33 | O155: 1 | P155: 45 | Q155: 45
A156: 1452 | B156: Tranemo | C156: 29 | D156: 3922 | E156: 135.2413793 | F156: 8 | G156: 1024 | H156: 128 | I156: 5 | J156: 1318 | K156: 263.6 | L156: 0 | M156: 0 | O156: 0 | P156: 0
A157: 1460 | B157: Bengtsfors | C157: 51 | D157: 2669 | E157: 52.33333333 | F157: 12 | G157: 1015 | H157: 84.58333333 | I157: 5 | J157: 1400 | K157: 280 | L157: 2 | M157: 107 | N157: 53.5 | O157: 7 | P157: 87 | Q157: 12.42857143
A158: 1461 | B158: Mellerud | C158: 73 | D158: 4418 | E158: 60.52054795 | F158: 27 | G158: 2463 | H158: 91.22222222 | I158: 11 | J158: 968 | K158: 88 | L158: 6 | M158: 162 | N158: 27 | O158: 5 | P158: 106 | Q158: 21.2
A159: 1462 | B159: Lilla Edet | C159: 44 | D159: 5834 | E159: 132.5909091 | F159: 12 | G159: 1212 | H159: 101 | I159: 6 | J159: 1037 | K159: 172.8333333 | L159: 1 | M159: 62 | N159: 62 | O159: 8 | P159: 110 | Q159: 13.75
A160: 1463 | B160: Mark | C160: 67 | D160: 10550 | E160: 157.4626866 | F160: 20 | G160: 3945 | H160: 197.25 | I160: 18 | J160: 6726 | K160: 373.6666667 | L160: 10 | M160: 427 | N160: 42.7 | O160: 35 | P160: 599 | Q160: 17.11428571
A161: 1465 | B161: Svenljunga | C161: 53 | D161: 3042 | E161: 57.39622642 | F161: 19 | G161: 2085 | H161: 109.7368421 | I161: 7 | J161: 1809 | K161: 258.4285714 | L161: 0 | M161: 0 | O161: 1 | P161: 27 | Q161: 27
A162: 1466 | B162: Herrljunga | C162: 10 | D162: 2108 | E162: 210.8 | F162: 2 | G162: 1162 | H162: 581 | I162: 7 | J162: 785 | K162: 112.1428571 | L162: 3 | M162: 55 | N162: 18.33333333 | O162: 5 | P162: 18 | Q162: 3.6
A163: 1470 | B163: Vara | C163: 49 | D163: 7169 | E163: 146.3061224 | F163: 6 | G163: 589 | H163: 98.16666667 | I163: 8 | J163: 2229 | K163: 278.625 | L163: 1 | M163: 86 | N163: 86 | O163: 0 | P163: 0
A164: 1471 | B164: Götene | C164: 36 | D164: 4961 | E164: 137.8055556 | F164: 6 | G164: 1428 | H164: 238 | I164: 6 | J164: 814 | K164: 135.6666667 | L164: 16 | M164: 642 | N164: 40.125 | O164: 3 | P164: 33 | Q164: 11
A165: 1472 | B165: Tibro | C165: 57 | D165: 4476 | E165: 78.52631579 | F165: 13 | G165: 745 | H165: 57.30769231 | I165: 4 | J165: 558 | K165: 139.5 | L165: 1 | M165: 170 | N165: 170 | O165: 1 | P165: 12 | Q165: 12
A166: 1473 | B166: Töreboda | C166: 48 | D166: 2540 | E166: 52.91666667 | F166: 10 | G166: 624 | H166: 62.4 | I166: 5 | J166: 245 | K166: 49 | L166: 5 | M166: 312 | N166: 62.4 | O166: 2 | P166: 23 | Q166: 11.5
A167: 1480 | B167: Göteborg | C167: 268 | D167: 153099 | E167: 571.2649254 | F167: 45 | G167: 8070 | H167: 179.3333333 | I167: 6 | J167: 1424 | K167: 237.3333333 | L167: 701 | M167: 269540 | N167: 384.5078459 | O167: 52 | P167: 4113 | Q167: 79.09615385
A168: 1481 | B168: Mölndal | C168: 55 | D168: 27089 | E168: 492.5272727 | F168: 12 | G168: 1734 | H168: 144.5 | I168: 0 | J168: 0 | L168: 56 | M168: 15324 | N168: 273.6428571 | O168: 9 | P168: 609 | Q168: 67.66666667
A169: 1482 | B169: Kungälv | C169: 48 | D169: 25451 | E169: 530.2291667 | F169: 28 | G169: 9253 | H169: 330.4642857 | I169: 4 | J169: 2032 | K169: 508 | L169: 29 | M169: 7167 | N169: 247.137931 | O169: 31 | P169: 1097 | Q169: 35.38709677
A170: 1484 | B170: Lysekil | C170: 59 | D170: 7557 | E170: 128.0847458 | F170: 39 | G170: 5566 | H170: 142.7179487 | I170: 1 | J170: 165 | K170: 165 | L170: 23 | M170: 2637 | N170: 114.6521739 | O170: 9 | P170: 516 | Q170: 57.33333333
A171: 1485 | B171: Uddevalla | C171: 82 | D171: 26280 | E171: 320.4878049 | F171: 51 | G171: 12017 | H171: 235.627451 | I171: 4 | J171: 633 | K171: 158.25 | L171: 38 | M171: 9960 | N171: 262.1052632 | O171: 56 | P171: 1126 | Q171: 20.10714286
A172: 1486 | B172: Strömstad | C172: 30 | D172: 2644 | E172: 88.13333333 | F172: 62 | G172: 4449 | H172: 71.75806452 | I172: 9 | J172: 1120 | K172: 124.4444444 | L172: 30 | M172: 1126 | N172: 37.53333333 | O172: 21 | P172: 489 | Q172: 23.28571429
A173: 1487 | B173: Vänersborg | C173: 84 | D173: 13496 | E173: 160.6666667 | F173: 22 | G173: 2426 | H173: 110.2727273 | I173: 8 | J173: 1842 | K173: 230.25 | L173: 20 | M173: 3376 | N173: 168.8 | O173: 12 | P173: 98 | Q173: 8.166666667
A174: 1488 | B174: Trollhättan | C174: 65 | D174: 18364 | E174: 282.5230769 | F174: 14 | G174: 1510 | H174: 107.8571429 | I174: 5 | J174: 1009 | K174: 201.8 | L174: 45 | M174: 11800 | N174: 262.2222222 | O174: 0 | P174: 0
A175: 1489 | B175: Alingsås | C175: 66 | D175: 18698 | E175: 283.3030303 | F175: 10 | G175: 3703 | H175: 370.3 | I175: 6 | J175: 2572 | K175: 428.6666667 | L175: 33 | M175: 4181 | N175: 126.6969697 | O175: 42 | P175: 914 | Q175: 21.76190476
A176: 1490 | B176: Borås | C176: 136 | D176: 49600 | E176: 364.7058824 | F176: 37 | G176: 6990 | H176: 188.9189189 | I176: 10 | J176: 2212 | K176: 221.2 | L176: 40 | M176: 15851 | N176: 396.275 | O176: 60 | P176: 537 | Q176: 8.95
A177: 1491 | B177: Ulricehamn | C177: 50 | D177: 6793 | E177: 135.86 | F177: 17 | G177: 3258 | H177: 191.6470588 | I177: 7 | J177: 2436 | K177: 348 | L177: 7 | M177: 1332 | N177: 190.2857143 | O177: 9 | P177: 205 | Q177: 22.77777778
A178: 1492 | B178: Åmål | C178: 69 | D178: 4376 | E178: 63.42028986 | F178: 14 | G178: 848 | H178: 60.57142857 | I178: 8 | J178: 700 | K178: 87.5 | L178: 22 | M178: 1013 | N178: 46.04545455 | O178: 3 | P178: 11 | Q178: 3.666666667
A179: 1493 | B179: Mariestad | C179: 93 | D179: 9798 | E179: 105.3548387 | F179: 8 | G179: 956 | H179: 119.5 | I179: 2 | J179: 425 | K179: 212.5 | L179: 29 | M179: 2981 | N179: 102.7931034 | O179: 14 | P179: 146 | Q179: 10.42857143
A180: 1494 | B180: Lidköping | C180: 62 | D180: 13947 | E180: 224.9516129 | F180: 19 | G180: 5754 | H180: 302.8421053 | I180: 13 | J180: 2336 | K180: 179.6923077 | L180: 34 | M180: 6873 | N180: 202.1470588 | O180: 5 | P180: 177 | Q180: 35.4
A181: 1495 | B181: Skara | C181: 36 | D181: 5722 | E181: 158.9444444 | F181: 6 | G181: 1902 | H181: 317 | I181: 9 | J181: 1102 | K181: 122.4444444 | L181: 6 | M181: 608 | N181: 101.3333333 | O181: 4 | P181: 76 | Q181: 19
A182: 1496 | B182: Skövde | C182: 105 | D182: 22014 | E182: 209.6571429 | F182: 18 | G182: 1455 | H182: 80.83333333 | I182: 5 | J182: 1789 | K182: 357.8 | L182: 25 | M182: 9403 | N182: 376.12 | O182: 3 | P182: 83 | Q182: 27.66666667
A183: 1497 | B183: Hjo | C183: 35 | D183: 4448 | E183: 127.0857143 | F183: 15 | G183: 1129 | H183: 75.26666667 | I183: 1 | J183: 183 | K183: 183 | L183: 0 | M183: 0 | O183: 7 | P183: 69 | Q183: 9.857142857
A184: 1498 | B184: Tidaholm | C184: 33 | D184: 4781 | E184: 144.8787879 | F184: 8 | G184: 644 | H184: 80.5 | I184: 5 | J184: 631 | K184: 126.2 | L184: 0 | M184: 0 | O184: 0 | P184: 0
A185: 1499 | B185: Falköping | C185: 69 | D185: 13985 | E185: 202.6811594 | F185: 11 | G185: 934 | H185: 84.90909091 | I185: 12 | J185: 5165 | K185: 430.4166667 | L185: 6 | M185: 2240 | N185: 373.3333333 | O185: 0 | P185: 0
A186: 1715 | B186: Kil | C186: 39 | D186: 6355 | E186: 162.9487179 | F186: 10 | G186: 866 | H186: 86.6 | I186: 7 | J186: 847 | K186: 121 | L186: 4 | M186: 549 | N186: 137.25 | O186: 12 | P186: 159 | Q186: 13.25
A187: 1730 | B187: Eda | C187: 56 | D187: 2076 | E187: 37.07142857 | F187: 15 | G187: 1390 | H187: 92.66666667 | I187: 10 | J187: 1228 | K187: 122.8 | L187: 1 | M187: 209 | N187: 209 | O187: 4 | P187: 51 | Q187: 12.75
A188: 1737 | B188: Torsby | C188: 53 | D188: 3035 | E188: 57.26415094 | F188: 48 | G188: 2703 | H188: 56.3125 | I188: 21 | J188: 1473 | K188: 70.14285714 | L188: 4 | M188: 13 | N188: 3.25 | O188: 10 | P188: 78 | Q188: 7.8
A189: 1760 | B189: Storfors | C189: 50 | D189: 2956 | E189: 59.12 | F189: 18 | G189: 1824 | H189: 101.3333333 | I189: 3 | J189: 279 | K189: 93 | L189: 0 | M189: 0 | O189: 2 | P189: 18 | Q189: 9
A190: 1761 | B190: Hammarö | C190: 27 | D190: 10042 | E190: 371.9259259 | F190: 6 | G190: 1345 | H190: 224.1666667 | I190: 2 | J190: 160 | K190: 80 | L190: 4 | M190: 864 | N190: 216 | O190: 6 | P190: 210 | Q190: 35
A191: 1762 | B191: Munkfors | C191: 49 | D191: 2198 | E191: 44.85714286 | F191: 5 | G191: 537 | H191: 107.4 | I191: 0 | J191: 0 | L191: 0 | M191: 0 | O191: 0 | P191: 0
A192: 1763 | B192: Forshaga | C192: 54 | D192: 6349 | E192: 117.5740741 | F192: 5 | G192: 340 | H192: 68 | I192: 3 | J192: 279 | K192: 93 | L192: 0 | M192: 0 | O192: 12 | P192: 102 | Q192: 8.5
A193: 1764 | B193: Grums | C193: 39 | D193: 2140 | E193: 54.87179487 | F193: 7 | G193: 1542 | H193: 220.2857143 | I193: 4 | J193: 831 | K193: 207.75 | L193: 1 | M193: 266 | N193: 266 | O193: 0 | P193: 0
A194: 1765 | B194: Årjäng | C194: 45 | D194: 2056 | E194: 45.68888889 | F194: 25 | G194: 1754 | H194: 70.16 | I194: 17 | J194: 847 | K194: 49.82352941 | L194: 2 | M194: 31 | N194: 15.5 | O194: 23 | P194: 206 | Q194: 8.956521739
A195: 1766 | B195: Sunne | C195: 42 | D195: 2454 | E195: =IF(C195>0,D195/C195," ") -> 58.42857143 | F195: 24 | G195: 2717 | H195: =IF(F195>0,G195/F195," ") -> 113.2083333 | I195: 30 | J195: 4772 | K195: =IF(I195>0,J195/I195," ") -> 159.0666667 | L195: 1 | M195: 238 | N195: =IF(L195>0,M195/L195," ") -> 238 | O195: 8 | P195: 62 | Q195: =IF(O195>0,P195/O195," ") -> 7.75
A196: 1780 | B196: Karlstad | C196: 131 | D196: 34200 | E196: 261.0687023 | F196: 23 | G196: 6199 | H196: 269.5217391 | I196: 9 | J196: 2591 | K196: 287.8888889 | L196: 128 | M196: 33478 | N196: 261.546875 | O196: 10 | P196: 238 | Q196: 23.8
A197: 1781 | B197: Kristinehamn | C197: 81 | D197: 10277 | E197: 126.8765432 | F197: 23 | G197: 2630 | H197: 114.3478261 | I197: 8 | J197: 2636 | K197: 329.5 | L197: 13 | M197: 2321 | N197: 178.5384615 | O197: 4 | P197: 44 | Q197: 11
A198: 1782 | B198: Filipstad | C198: 72 | D198: 2613 | E198: 36.29166667 | F198: 25 | G198: 2048 | H198: 81.92 | I198: 3 | J198: 421 | K198: 140.3333333 | L198: 0 | M198: 0 | O198: 0 | P198: 0
A199: 1783 | B199: Hagfors | C199: 140 | D199: 5262 | E199: 37.58571429 | F199: 17 | G199: 1225 | H199: 72.05882353 | I199: 10 | J199: 1170 | K199: 117 | L199: 0 | M199: 0 | O199: 1 | P199: 22 | Q199: 22
A200: 1784 | B200: Arvika | C200: 93 | D200: 11285 | E200: 121.344086 | F200: 27 | G200: 4738 | H200: 175.4814815 | I200: 30 | J200: 4917 | K200: 163.9 | L200: 9 | M200: 928 | N200: 103.1111111 | O200: 17 | P200: 220 | Q200: 12.94117647
... 92 more rows
